Cogmind - Beta 15 @@@ ROGUE MODE // 2025.08.30 @ 17:11:11 Player: beans Result: Destroyed by G-47 Trooper with Particle Gun Performance ------------- Evolutions (2) 1000 Regions Visited (3) 600 Robots Destroyed (29) 145 Value Destroyed (562) 562 Prototype IDs (6) 120 Alien Tech Used (0) 0 Bonus (0) 0 TOTAL SCORE: 2427 Bonus ------- None Cogmind --------- Core Integrity 0/550 Matter 20/300 Energy 100/100 System Corruption 0% Temperature Cool (11) Movement Flying (35) Location -8/Materials Parts ------- > --- POWER (1) -------- (None) > --- PROPULSION (3) --- Cesium-ion Thruster > --- UTILITY (4) ------ (None) > --- WEAPON (3) ------- (None) > --- INVENTORY (5) ---- Aerolev Unit High-capacity Matter Pod (4) High-capacity Matter Pod (0) High-capacity Matter Pod (0) Grenade Launcher Peak State ------------ > --- POWER ------------ (None) > --- PROPULSION ------- Aerolev Unit > --- UTILITY ---------- Targeting Computer Particle Charger > --- WEAPON ----------- Light Assault Rifle Advanced EMP Blaster > --- INVENTORY -------- Aerolev Unit High-capacity Matter Pod High-capacity Matter Pod High-capacity Matter Pod [Rating: 13] Favorites ----------- Power Light Ion Engine Engine Light Ion Engine Propulsion Light Treads Treads Light Treads Wheel Wheel Hover Unit Aerolev Unit Flight Unit Cesium-ion Thruster Utility Targeting Computer Device Particle Charger Processor Targeting Computer Hackware Hacking Suite Weapon Assault Rifle Ballistic Gun Assault Rifle Ballistic Cannon Flak Cannon Launcher Grenade Launcher Build | -11 -10 -9 -8 ------- Run | Yrd Mat Mat Mat Slots Evolved 4 | . . 2 2 Power . | . . . . Propulsion 1 | . . 1 . Utility 2 | . . 1 1 Weapon 1 | . . . 1 Parts Attached 22 | 5 4 2 11 Power 1 | 1 . . . Engine 1 | 1 . . . Core . | . . . . Reactor . | . . . . Propulsion 8 | 2 1 2 3 Treads 2 | 2 . . . Leg . | . . . . Wheel 1 | . . . 1 Hover 3 | . 1 2 . Flight 2 | . . . 2 Utility 4 | . 2 . 2 Device 2 | . . . 2 Storage . | . . . . Processor 1 | . 1 . . Hackware 1 | . 1 . . Protection . | . . . . Artifact . | . . . . Weapon 9 | 2 1 . 6 Energy Gun . | . . . . Energy Cannon . | . . . . Ballistic Gun 5 | 2 1 . 2 Ballistic Cannon 2 | . . . 2 Launcher 2 | . . . 2 Special Weapon . | . . . . Impact Weapon . | . . . . Slashing Weapon . | . . . . Piercing Weapon . | . . . . Special Melee Weapon . | . . . . Unidentified Prototypes 4 | . . 1 3 Parts Lost 15 | . 4 2 9 Power 1 | . 1 . . Propulsion 4 | . 1 . 3 Utility 3 | . . 1 2 Weapon 7 | . 2 1 4 Highest Loss Streak 4 | . 2 2 4 To Critical Strikes 2 | . . . 2 Average Backups 2 | . 1 3 4 Power . | . . . . Propulsion . | . . . . Utility 2 | . 1 3 3 Weapon . | . . . . Tool/Special . | . . . . Unused Backups 5 | . . . 5 Power . | . . . . Propulsion 1 | . . . 1 Utility 3 | . . . 3 Weapon 1 | . . . 1 Tool/Special . | . . . . Average Slot Usage (%) 59 | . 83 23 26 Engine 5 | . 8 . . Treads 13 | . 23 . . Hover 2 | . 1 1 4 Flight 1 | . . . 4 Processor 9 | . 11 11 3 Hackware 6 | . 9 5 . Ballistic Gun 17 | . 27 5 2 Ballistic Cannon 1 | . . . 6 Peak Build Rating 13 | 5 9 9 13 Average Rating 6 | 3 7 3 8 On Entrance 4 | . 5 5 9 Naked Turns 10 | . . . 10 Heaviest Build 15 | 7 7 2 15 Greatest Support 40 | 40 40 16 16 Greatest Overweight (x) 2 | . . . 2 Average Overweight (x) . | . . . . Largest Inventory Capacity 5 | 5 5 5 5 Average Capacity 5 | 5 5 5 5 Most Carried 5 | 2 4 4 5 Average Carried 2 | . 1 3 4 Final Capacity 5 | 5 5 5 5 Final Carried 5 | . 3 3 5 Class Distribution -------------------- 100% | Mutant Dominant Class ---------------- Mutant | -10/Materials Mutant | -9/Materials Mutant | -8/Materials Resources | -11 -10 -9 -8 ----------- Run | Yrd Mat Mat Mat Matter Collected 659 | 244 329 . 86 Remotely . | . . . . Salvage Created 732 | 53 479 . 200 Parts 51 | 2 28 . 21 Haulers Intercepted 1 | . 1 . . Recyclers Shooed 2 | . 1 . 1 Parts Field Recycled . | . . . . Retrieved Matter . | . . . . Parts Self-Destructed . | . . . . Prevented . | . . . . Kills | -11 -10 -9 -8 ------- Run | Yrd Mat Mat Mat Combat Hostiles Destroyed 18 | . 8 . 10 Guns 13 | . 8 . 5 Cannons 3 | . . . 3 AOE 2 | . . . 2 Classes Destroyed 10 | 1 6 . 3 Worker 2 | . . . 2 Tunneler 1 | . 1 . . Hauler 1 | . 1 . . Recycler 2 | 1 1 . . Operator 2 | . 2 . . Watcher 3 | . 3 . . Swarmer 9 | . 3 . 6 Grunt 7 | . 5 . 2 Duelist 1 | . . . 1 Sentry 1 | . . . 1 Best Kill Streak 6 | 1 6 . 4 Combat Bots Only 4 | . 3 . 4 Max Kills in Single Turn 2 | 1 1 . 2 Gunslinging . | . . . . Exploded 1 | . . . 1 Melee . | . . . . Uniques/NPCs Destroyed . | . . . . Combat | -11 -10 -9 -8 -------- Run | Yrd Mat Mat Mat Hostile Shots Fired 336 | . 79 63 194 Missed 105 | . 26 21 58 Hits 231 | . 53 42 136 Melee 3 | . . . 3 Projectile 228 | . 53 42 133 Critical Strikes 6 | . 1 . 5 Damage Taken 2587 | . 633 491 1463 Core 1016 | . 131 334 551 Absorbed by Shields . | . . . . Core Remaining (%) 54 | 100 47 16 . Volleys Fired 102 | 2 60 5 35 Largest 3 | 2 2 1 3 Hottest 104 | 40 40 20 104 Shots Fired 173 | 4 117 5 47 Gun 151 | 4 117 5 25 Cannon 20 | . . . 20 Launcher 2 | . . . 2 Special . | . . . . Kinetic 171 | 4 117 5 45 Thermal . | . . . . Explosive 2 | . . . 2 Electromagnetic . | . . . . Robot Hit Streak 8 | 3 8 4 3 Robot Miss Streak 10 | . 4 1 10 Penetration Max . | . . . . Secondary Targets 2 | . 2 . . Max Gunslinging Chain 1 | . 1 . . Shots Hit Robots 101 | 3 72 4 22 Core Hits 56 | 2 30 1 23 Critical Kills . | . . . . Critical Parts Destroyed 1 | . 1 . . Critical Strikes 1 | . 1 . . Destroy 1 | . 1 . . Melee Attacks . | . . . . Impact . | . . . . Slashing . | . . . . Piercing . | . . . . Sneak Attacks . | . . . . Combat Hostiles . | . . . . Follow-up Attacks . | . . . . Damage Inflicted 1515 | 42 893 46 534 Guns 1120 | 42 893 46 139 Cannons 235 | . . . 235 Explosions 157 | . . . 157 Melee . | . . . . Ramming 3 | . . . 3 Kinetic 1355 | 42 893 46 374 Thermal . | . . . . Explosive 157 | . . . 157 Electromagnetic . | . . . . Impact . | . . . . Slashing . | . . . . Piercing . | . . . . Highest Corruption 1 | . . 1 . Average Corruption 1 | . . 1 . Corruption Purged . | . . . . Corruption Blocked . | . . . . Overload Shots . | . . . . Overflow Damage . | . . . . Projectiles . | . . . . Explosions . | . . . . Melee . | . . . . Knockbacks 3 | . . . 3 Impact . | . . . . Kinetic 3 | . . . 3 Secondary . | . . . . Self-Inflicted Damage 1 | . . . 1 Shots . | . . . . Rammed 1 | . . . 1 Targets Rammed 1 | . . . 1 Kicked . | . . . . Crushed . | . . . . Highest Temperature 21 | . 16 . 21 Average Temperature 7 | . 5 . 8 Received Heat Transfer 735 | . 321 198 216 Siege Activations . | . . . . Martial Activations . | . . . . Shielding Activations . | . . . . Robots Disrupted . | . . . . Combat Hostiles . | . . . . Robots Corrupted . | . . . . Combat Hostiles . | . . . . Parts Fried . | . . . . Impact Corruptions . | . . . . Robots Melted . | . . . . Combat Hostiles . | . . . . Parts Melted . | . . . . Heat Transferred . | . . . . Parts Sabotaged . | . . . . Parts Stolen . | . . . . Parts Stripped . | . . . . Power Chain Reactions . | . . . . Alert | -11 -10 -9 -8 ------- Run | Yrd Mat Mat Mat Maximum Alert Level 1 | . . . 1 Low Security (%) 95 | 100 100 100 80 Level 1 4 | . . . 19 Level 2 . | . . . . Level 3 . | . . . . Level 4 . | . . . . Level 5 . | . . . . High Security . | . . . . Max Security . | . . . . Peak Influence 230 | 5 75 120 230 Initial 50 | . . 6 50 Average 40 | 1 23 33 97 Influence Increases 858 | 5 308 165 380 Destroy 0b10 Robot/C 360 | . 160 . 200 Destroy 0b10 Robot/NC 55 | 5 40 . 10 Destroy Leader 88 | . 48 . 40 Destroy Structure 10 | . . . 10 Partial Spotted 60 | . . 45 15 Lose Combat Pursuer 285 | . 60 120 105 Influence Decreases 658 | 5 292 61 300 Entered New Map 80 | . . 10 70 Time Decay 462 | 5 266 51 140 Lost Part 116 | . 26 . 90 Squads Dispatched 6 | . 3 1 2 Investigation . | . . . . Extermination . | . . . . Reinforcement 6 | . 3 1 2 Assault . | . . . . Garrison . | . . . . Intercept . | . . . . Searches Triggered . | . . . . Construction Impeded . | . . . . Haulers Reinforced . | . . . . Active Scanning Responses . | . . . . Cargo Convoy Interrupts . | . . . . Stealth | -11 -10 -9 -8 --------- Run | Yrd Mat Mat Mat Distress Signals 2 | . . 1 1 Communications Jammed . | . . . . Distress Signals . | . . . . Times Spotted 68 | . 25 18 25 Peak Tracking Total 9 | . 4 9 9 Tactical Retreats 6 | . 1 2 3 Traps | -11 -10 -9 -8 ------- Run | Yrd Mat Mat Mat Traps Triggered 2 | . 1 1 . Indirectly . | . . . . Trap Hack Attempts . | . . . . Triggered . | . . . . Disarmed . | . . . . Reprogrammed . | . . . . Reused . | . . . . Traps Extracted . | . . . . Installed . | . . . . Triggered . | . . . . Machines | -11 -10 -9 -8 ---------- Run | Yrd Mat Mat Mat Machines Disabled . | . . . . Max in Single Turn . | . . . . Machines Repaired . | . . . . Machines Dismantled . | . . . . Machines Sabotaged . | . . . . Overloaded Fab Kills . | . . . . Hacking | -11 -10 -9 -8 --------- Run | Yrd Mat Mat Mat Machines Accessed 2 | . 2 . . Terminals 2 | . 2 . . Fabricators . | . . . . Repair Stations . | . . . . Recycling Units . | . . . . Scanalyzers . | . . . . Garrison Access . | . . . . Total Hacks 3 | . 3 . . Successful 1 | . 1 . . Failed 2 | . 2 . . Catastrophic . | . . . . Database Lockouts . | . . . . Manual 2 | . 2 . . Terminals 3 | . 3 . . Fabricators . | . . . . Repair Stations . | . . . . Recycling Units . | . . . . Scanalyzers . | . . . . Garrison Access . | . . . . Terminal Hacks 1 | . 1 . . Prototype ID Bank 1 | . 1 . . Fabricator Hacks . | . . . . Repair Station Hacks . | . . . . Recycling Unit Hacks . | . . . . Scanalyzer . | . . . . Garrison Access Hacks . | . . . . Unauthorized Hacks . | . . . . Terminals . | . . . . Fabricators . | . . . . Repair Stations . | . . . . Recycling Units . | . . . . Scanalyzers . | . . . . Garrison Access . | . . . . Data Cores Recovered . | . . . . Used . | . . . . Hacking Detections 2 | . 2 . . Full Trace Events . | . . . . Feedback Events . | . . . . Feedback Blocked . | . . . . Robot Schematics Acquired . | . . . . Robots Built . | . . . . Authchips . | . . . . Time . | . . . . Total Robot Build Rating . | . . . . Part Schematics Acquired . | . . . . Parts Built . | . . . . Authchips . | . . . . Time . | . . . . Total Part Build Rating . | . . . . Parts Repaired . | . . . . Time . | . . . . Parts Recycled . | . . . . Recycled Matter . | . . . . Retrieved Matter . | . . . . Retrieved Components . | . . . . Parts Scanalyzed . | . . . . Part Schematics Acquired . | . . . . Parts Damaged . | . . . . Bothacking | -11 -10 -9 -8 ------------ Run | Yrd Mat Mat Mat Used RIF Installer . | . . . . Robots Hacked . | . . . . Non-combat . | . . . . Combat . | . . . . Robot Hacks Applied . | . . . . Relay Couplers Released . | . . . . Fabnet Peak Effective % . | . . . . Robots Rewired . | . . . . Allies Hacked . | . . . . Hacks Repelled . | . . . . Allies | -11 -10 -9 -8 -------- Run | Yrd Mat Mat Mat Total Allies . | . . . . Largest Group . | . . . . Highest-Rated Group . | . . . . Highest-Rated Ally . | . . . . Total Orders . | . . . . Ally Attacks . | . . . . Total Damage . | . . . . Kills . | . . . . Allies Corrupted . | . . . . Allies Melted . | . . . . Intel | -11 -10 -9 -8 ------- Run | Yrd Mat Mat Mat Active Infowar (turns) . | . . . . Robot Analysis Total . | . . . . Derelict Logs Recovered . | . . . . Drone Launches . | . . . . Drone Recoveries . | . . . . Exploration | -11 -10 -9 -8 ------------- Run | Yrd Mat Mat Mat Turns Passed 1233 | 77 681 194 281 Spaces Moved 950 | 46 389 253 262 Core 306 | 10 17 231 48 Treads 296 | 36 260 . . Legs . | . . . . Wheels 1 | . . . 1 Hover 234 | . 112 22 100 Flight 113 | . . . 113 Fastest Speed 35 | 50 50 46 35 Average Speed 88 | 136 126 49 62 Slowest Speed 195 | 160 160 50 195 Overloaded Moves . | . . . . Propulsion Burnouts . | . . . . Robots Hopped . | . . . . Potential Cave-ins . | . . . . Cave-ins Triggered . | . . . . Exploration Rate (%) 34 | 4 58 30 45 Regions Visited 3 Branch Regions . Pre-discovered Areas . | . . . . Known Exits Taken . | . . . . Unknown Exits Taken 3 | 1 1 1 . Scrap Searched . | . . . . Spaces Dug . | . . . . Terrain Destroyed 10 | . . . 10 Melee . | . . . . Projectile . | . . . . AOE 10 | . . . 10 Terrain Rammed . | . . . . Walls Destroyed . | . . . . Machines Disabled . | . . . . Actions | -11 -10 -9 -8 --------- Run | Yrd Mat Mat Mat Total 1173 | 57 461 315 340 Wait 71 | . . 54 17 Move 947 | 45 388 252 262 Hop . | . . . . Pick Up 22 | 5 7 2 8 Fast Attach 5 | . . . 5 Attach 18 | 5 4 2 7 Detach 1 | . . . 1 Swap . | . . . . Drop 6 | . 2 . 4 Fire 102 | 2 60 5 35 Melee . | . . . . Ram 1 | . . . 1 Kick . | . . . . Crush . | . . . . Escape Stasis . | . . . . Rewire . | . . . . Trap . | . . . . Miscellaneous . | . . . . Route ------- -11/Scrapyard -10/Materials (discovered 2 exits: [*Mat] / [*Min]) -9/Materials -8/Materials History --------- Turn | Location | Event 28 | -11/Scrapyard | Discovered new exit (range 15) 78 | -11/Scrapyard | Entered Materials 302 | -10/Materials | Discovered new exit (range 8) 304 | -10/Materials | Build established: Mutant 482 | -10/Materials | Discovered new exit (range 11) 752 | -10/Materials | Core integrity fell below 50% 759 | -10/Materials | Entered another Materials area 759 | -9/Materials | Evolved 2 slots: Propulsion x1, Utility x1 930 | -9/Materials | Core integrity fell below 50% 946 | -9/Materials | Discovered new exit (range 13) 951 | -9/Materials | Core integrity fell below 20% 953 | -9/Materials | Entered another Materials area 953 | -8/Materials | Evolved 2 slots: Utility x1, Weapon x1 1059 | -8/Materials | Lost 4 parts (2n1u1w) 1091 | -8/Materials | Core integrity fell below 50% 1136 | -8/Materials | Lost 4 parts (1n1u2w) 1157 | -8/Materials | Core integrity fell below 20% 1234 | -8/Materials | Destroyed by G-47 Trooper with Particle Gun Last Messages --------------- Dropped Wheel. K-01 Serf collects debris. R-06 Scavenger collects Sml. Matter Pod. K-01 Serf collects debris. R-06 Scavenger collects Lgt. Ion Engine. K-01 Serf collects debris. S-10 Pest knocked back. K-01 Serf collects debris. S-10 Pest destroyed. K-01 Serf collects debris. R-06 Scavenger collects Grenade Launcher. K-01 Serf collects debris. R-06 Scavenger collects Sml. Matter Pod. R-06 Scavenger collects Wheel. K-01 Serf collects debris. Flak Cannon destroyed. Acquired 13 matter. Dropped Flak Cannon. K-01 Serf collects debris. K-01 Serf cleans the Pressure Siphon. Map ----- +----------------------------------------------------+ | ??# #??????????????????????# = #? | | ??# #?????????????????????##### #? | | ??# #?????????????????????+ #? | | ??# #??????????????????????##### # ### #? | | ??# ??????????????????????????# #? | | ??? ????????????????????????????# #? | | ????????????????????????????????????# ## | | ????????????????????????????????????# """"" ## | | ?????????????????????????????????? """"" ## | | ??????????????????????????????? """"" ## | | ????????????????????????? ?? | | ????????????????????????? | | ??????????????H?????????? ################ | | ????????????????????????" ????????????????# | | ????????????????????????" ?????????????????# | | ????????????????????????" ????????????????## | | ??????????????????#????? ????????????????# | | ??????????????????# k #????????????????# | | ??????????????????# """" #????????????????+ | | ??????????????? ??# """" #????????????????# | | ??????????????? ??# """" #???????????????## | | ?????????????? ?## #???????????##### | | ??????????????#+## ######### ?? | | ??????????????# | | ??????????????# | | ??????????????# """ """@ """ ??""" | | ??????????##### ^""" """ """ ??""" | | ??????????# """ """ """ ?""" | | ??????????# a | | ??????????# ^ | | ??????????# "" g""" | | ??????????# """ """ ? | | ??????????# "" k ] """ ###### ? " | | ??????????# ]] % #????? ???" | | ??????????# +????# ???" | | ??????????# #????# ????# ## | | ?????###+## ###### % % #????# ????# ?? | | [ #????## #????# ????? #? | | % #?????###### ##????# ????? #? | | # """" """" #??????????# #???###+#####/## #? | | # """" """" #??????????# #???# ## #? | | ?????"""" """" #????####### #???# [ ## #? | | ????? ##????+ #???# ## ## | | ????? #?????# ] #???# ] + | | ???? """" " #?????# #???# # | | ?????""""? T ?????# #???# # [[ | | ??????????? " #?????# !! ! #??# = / [! | | ??????????? #????## !! #??# [=*% # [! | | ??????????? #????# ! % ########"##### | | ???????????#??####????# * | +----------------------------------------------------+ Best States ------------- Heat Dissipation 31 Energy Generation 10 Energy Capacity 125 Matter Stores 300 Matter Capacity 300 Sight Range 16 Terrain Scan Density 10 Evasion (%) 63 Targeting Accuracy 5 Recoil Reduction 2 Particle Charging 15 Offensive Hacking 10 Item Schematics ----------------- None Robot Schematics ------------------ None Fabricated ------------ Nothing Repaired ---------- Nothing Alien Tech Used ----------------- None Achievements -------------- None Challenges ------------ None Game ------ Seed GaussCloakAxe Manual? 0 Play Time 00:13:16 Cumulative 115.3 hours Start 2025.08.30 @ 15:46:46 End 2025.08.30 @ 17:11:11 Sessions 1 Manual Loads 0 Difficulty Rogue Special Mode None Game No. 421 Rogue 421 Adventurer 0 Explorer 0 Win Type - Total 0 Types 0/0/0/0/0/0/0/0/0/0 Lore% 45 Gallery% 44 Achievement% 31 Wizard Run 0 Options --------- Layout 2 ASCII 0 Keyboard 0 Movement Mouse Keybinds 0 Fullscreen 2 Font 24/Smallcaps Map View 50x44 Zoom Use 0% Tactical HUD 0 Map Filters NONE Filters NONE Steam 1 RUN: ee1cae7b-34e0-4df2-8599-111b1d6f72b6